Cogmind - Beta 14 @@@ ROGUE MODE // 2024.10.27 @ 15:53:55 Player: TheGreatPlup Result: Destroyed by G-34 Mercenary with Small Laser Performance ------------- Evolutions (1) 500 Regions Visited (3) 600 Robots Destroyed (65) 325 Value Destroyed (1860) 1860 Prototype IDs (0) 0 Alien Tech Used (0) 0 Bonus (0) 0 TOTAL SCORE: 3285 Bonus ------- None Cogmind --------- Core Integrity 0/400 Matter 213/300 Energy 23/265 System Corruption 4% Temperature Cool (6) Movement Core (550) Ox10 Location -9/Storage Parts ------- > --- POWER (1) -------- Improved Ion Engine > --- PROPULSION (3) --- (None) > --- UTILITY (3) ------ Huge Storage Unit Weight Redist. System > --- WEAPON (2) ------- Particle Cannon Rocket Launcher > --- INVENTORY (25) --- Ion Engine Ion Engine Ion Engine Reinforced Ion Engine Reinforced Ion Engine Light Treads Light Treads Light Treads Aluminum Leg High-capacity Battery (250) High-capacity Matter Pod (200) Sensor Array Sensor Array Improved Signal Interpreter Recoil Stabilizer Particle Cannon Particle Cannon Improved Light Cannon EMP Blaster Plasma Cutter Peak State ------------ > --- POWER ------------ Ion Engine > --- PROPULSION ------- Carbon-fiber Leg Carbon-fiber Leg Carbon-fiber Leg > --- UTILITY ---------- Huge Storage Unit System Shield System Shield > --- WEAPON ----------- Beam Rifle Particle Cannon > --- INVENTORY -------- Ion Engine Ion Engine Aluminum Leg Aluminum Leg Carbon-fiber Leg High-capacity Battery High-capacity Matter Pod Weight Redist. System Sensor Array Sensor Array Improved Signal Interpreter Recoil Stabilizer Hardened Light Armor Plating Hardened Light Armor Plating Hardened Light Armor Plating Hardened Light Armor Plating Beam Rifle Beam Rifle Particle Cannon Particle Cannon Particle Cannon Improved Light Cannon EMP Blaster Rocket Launcher Plasma Cutter [Rating: 25] Favorites ----------- Power Ion Engine Engine Ion Engine Propulsion Carbon-fiber Leg Treads Light Treads Leg Carbon-fiber Leg Utility Huge Storage Unit Device Sensor Array Storage Huge Storage Unit Hackware System Shield Protection Hardened Light Armor Plating Weapon Beam Rifle Energy Gun Beam Rifle Energy Cannon Particle Cannon Ballistic Gun Assault Rifle Launcher Rocket Launcher Build | -11 -10 -9 -9 ------- Run | Yrd Mat Mat Sto Slots Evolved 2 | . . 2 . Power . | . . . . Propulsion 1 | . . 1 . Utility 1 | . . 1 . Weapon . | . . . . Parts Attached 52 | 7 14 23 8 Power 6 | 2 1 2 1 Engine 6 | 2 1 2 1 Core . | . . . . Reactor . | . . . . Propulsion 18 | 2 6 8 2 Treads 2 | . 2 . . Leg 16 | 2 4 8 2 Wheel . | . . . . Hover . | . . . . Flight . | . . . . Utility 14 | 1 3 9 1 Device 5 | . 1 4 . Storage 2 | 1 1 . . Processor . | . . . . Hackware 2 | . . 2 . Protection 5 | . 1 3 1 Artifact . | . . . . Weapon 14 | 2 4 4 4 Energy Gun 6 | . 2 3 1 Energy Cannon 3 | . 2 . 1 Ballistic Gun 2 | 2 . . . Ballistic Cannon . | . . . . Launcher 3 | . . 1 2 Special Weapon . | . . . . Impact Weapon . | . . . . Slashing Weapon . | . . . . Piercing Weapon . | . . . . Special Melee Weapon . | . . . . Unidentified Prototypes . | . . . . Parts Lost 22 | . 1 12 9 Power 2 | . . 1 1 Propulsion 9 | . . 5 4 Utility 6 | . 1 3 2 Weapon 5 | . . 3 2 Highest Loss Streak 3 | . 1 3 3 To Critical Strikes . | . . . . Average Slot Usage (%) 97 | . 99 95 92 Engine 12 | . 14 10 9 Treads 8 | . 18 1 . Leg 21 | . 9 30 30 Device 10 | . 10 9 11 Storage 12 | . 14 11 11 Hackware 1 | . . 3 . Protection 5 | . 3 6 11 Energy Gun 14 | . 16 14 11 Energy Cannon 7 | . 7 7 5 Ballistic Gun 1 | . 4 . . Peak Build Rating 25 | 6 12 25 18 Average Rating 15 | 3 10 20 16 On Entrance 8 | . 6 12 17 Naked Turns . | . . . . Heaviest Build 100 | 13 93 100 98 Greatest Support 51 | 20 40 51 41 Greatest Overweight (x) 6 | 1 4 6 5 Average Overweight (x) 1 | . 1 1 2 Largest Inventory Capacity 25 | 8 25 25 25 Average Capacity 22 | 7 19 25 25 Most Carried 25 | 8 24 25 25 Average Carried 20 | 3 16 24 22 Final Capacity 25 | 8 25 25 25 Final Carried 25 | 4 24 25 20 Class Distribution -------------------- 90% | Mutant 6% | Scavenger-Mutant 3% | Hacker-Mutant Dominant Class ---------------- Mutant | -10/Materials Mutant | -9/Materials Scavenger-Mutant | -9/Storage Resources | -11 -10 -9 -9 ----------- Run | Yrd Mat Mat Sto Matter Collected 1146 | 254 467 343 82 Remotely . | . . . . Salvage Created 2300 | . 600 1264 436 Parts 143 | . 43 76 24 Haulers Intercepted . | . . . . Recyclers Shooed . | . . . . Parts Field Recycled . | . . . . Retrieved Matter . | . . . . Parts Self-Destructed . | . . . . Prevented . | . . . . Kills | -11 -10 -9 -9 ------- Run | Yrd Mat Mat Sto Combat Hostiles Destroyed 56 | . 18 30 8 Guns 23 | . 8 13 2 Cannons 28 | . 10 14 4 AOE 4 | . . 2 2 Classes Destroyed 8 | . 4 4 . Worker 3 | . . 1 2 Builder 1 | . 1 . . Operator 1 | . . 1 . Watcher 4 | . 1 2 1 Swarmer 13 | . 7 6 . Grunt 29 | . 11 13 5 Brawler 3 | . . 2 1 Sentry 11 | . . 9 2 Best Kill Streak 6 | . 4 4 6 Combat Bots Only 4 | . 4 3 3 Max Kills in Single Turn 2 | . 2 2 2 Gunslinging . | . . . . Exploded 2 | . . 2 1 Melee . | . . . . Uniques/NPCs Destroyed . | . . . . Combat | -11 -10 -9 -9 -------- Run | Yrd Mat Mat Sto Hostile Shots Fired 387 | . 78 202 107 Missed 100 | . 16 60 24 Damage Taken 3303 | . 604 1504 1195 Core 481 | . 79 236 166 Absorbed by Shields 151 | . . 151 . Core Remaining (%) 84 | 100 68 . . Volleys Fired 175 | . 51 92 32 Largest 2 | . 2 2 2 Hottest 124 | . 124 124 124 Shots Fired 300 | . 102 146 52 Gun 158 | . 59 79 20 Cannon 133 | . 43 66 24 Launcher 9 | . . 1 8 Special . | . . . . Kinetic 42 | . 42 . . Thermal 249 | . 60 145 44 Explosive 5 | . . . 5 Electromagnetic 4 | . . 1 3 Robot Hit Streak 15 | . 4 15 5 Robot Miss Streak 5 | . 5 5 3 Penetration Max . | . . . . Secondary Targets . | . . . . Shots Hit Robots 154 | . 47 80 27 Core Hits 86 | . 25 43 18 Critical Kills 1 | . . 1 . Critical Parts Destroyed 1 | . 1 . . Critical Strikes 12 | . 1 10 1 Burn 10 | . . 9 1 Meltdown 1 | . . 1 . Destroy 1 | . 1 . . Melee Attacks . | . . . . Impact . | . . . . Slashing . | . . . . Piercing . | . . . . Sneak Attacks . | . . . . Combat Hostiles . | . . . . Follow-up Attacks . | . . . . Damage Inflicted 3117 | . 776 1516 825 Guns 1332 | . 405 740 187 Cannons 1315 | . 371 678 266 Explosions 470 | . . 98 372 Melee . | . . . . Ramming . | . . . . Kinetic 318 | . 318 . . Thermal 2370 | . 458 1459 453 Explosive 195 | . . . 195 Electromagnetic 234 | . . 57 177 Impact . | . . . . Slashing . | . . . . Piercing . | . . . . Highest Corruption 4 | . . . 4 Average Corruption 4 | . . . 4 Corruption Purged . | . . . . Corruption Blocked . | . . . . Effects 3 | . . . 3 Matter Fused 2 | . . . 2 Data Loss (minor) 1 | . . . 1 Overload Shots . | . . . . Overflow Damage . | . . . . Projectiles . | . . . . Explosions . | . . . . Melee . | . . . . Knockbacks . | . . . . Impact . | . . . . Kinetic . | . . . . Secondary . | . . . . Self-Inflicted Damage 25 | . . . 25 Shots 2 | . . . 2 Rammed . | . . . . Targets Rammed . | . . . . Kicked . | . . . . Crushed . | . . . . Highest Temperature 618 | . 402 618 603 Average Temperature 159 | . 111 159 222 Received Heat Transfer 1198 | . 234 526 438 Effects 50 | . 3 36 11 Shutdowns 9 | . 1 6 2 Energy Bleed 14 | . . 10 4 Interference 3 | . 2 1 . Matter Decay 5 | . . 4 1 Short Circuit 3 | . . 1 2 Damage (minor) 7 | . . 5 2 Damage (major) 9 | . . 9 . Siege Activations . | . . . . Robots Corrupted . | . . . . Combat Hostiles . | . . . . Parts Fried 2 | . . . 2 Impact Corruptions . | . . . . Robots Melted 1 | . . 1 . Combat Hostiles 1 | . . 1 . Parts Melted 17 | . 2 14 1 Heat Transferred 5859 | . 999 3824 1036 Parts Sabotaged . | . . . . Parts Stolen . | . . . . Parts Stripped . | . . . . Power Chain Reactions 2 | . . 1 1 Alert | -11 -10 -9 -9 ------- Run | Yrd Mat Mat Sto Peak Influence 330 | . 286 330 258 Initial 137 | . . 27 137 Average 143 | . 122 161 160 Maximum Alert Level 1 | . 1 1 1 Low Security (%) 71 | 100 80 61 72 Level 1 28 | . 19 38 27 Level 2 . | . . . . Level 3 . | . . . . Level 4 . | . . . . Level 5 . | . . . . High Security . | . . . . Max Security . | . . . . Squads Dispatched 10 | . 5 4 1 Investigation 5 | . 3 2 . Extermination . | . . . . Reinforcement 5 | . 2 2 1 Assault . | . . . . Garrison . | . . . . Intercept . | . . . . Searches Triggered . | . . . . Construction Impeded 1 | . . . 1 Haulers Reinforced . | . . . . Active Scanning Responses . | . . . . Cargo Convoy Interrupts . | . . . . Stealth | -11 -10 -9 -9 --------- Run | Yrd Mat Mat Sto Distress Signals 6 | . 2 3 1 Communications Jammed . | . . . . Distress Signals . | . . . . Times Spotted 83 | . 31 38 14 Peak Tracking Total 5 | . 4 5 5 Tactical Retreats 8 | . 3 3 2 Traps | -11 -10 -9 -9 ------- Run | Yrd Mat Mat Sto Traps Triggered 5 | . 3 1 1 Indirectly . | . . . . Trap Hack Attempts . | . . . . Triggered . | . . . . Disarmed . | . . . . Reprogrammed . | . . . . Reused . | . . . . Traps Extracted . | . . . . Installed . | . . . . Triggered . | . . . . Machines | -11 -10 -9 -9 ---------- Run | Yrd Mat Mat Sto Machines Disabled 4 | . 2 1 1 Max in Single Turn 1 | . 1 1 1 Machines Repaired . | . . . . Machines Dismantled . | . . . . Machines Sabotaged . | . . . . Overloaded Fab Kills . | . . . . Hacking | -11 -10 -9 -9 --------- Run | Yrd Mat Mat Sto Machines Accessed 5 | . 2 2 1 Terminals 5 | . 2 2 1 Fabricators . | . . . . Repair Stations . | . . . . Recycling Units . | . . . . Scanalyzers . | . . . . Garrison Access . | . . . . Total Hacks 8 | . 2 5 1 Successful 3 | . . 2 1 Failed 5 | . 2 3 . Catastrophic . | . . . . Database Lockouts . | . . . . Manual . | . . . . Terminals 8 | . 2 5 1 Fabricators . | . . . . Repair Stations . | . . . . Recycling Units . | . . . . Scanalyzers . | . . . . Garrison Access . | . . . . Terminal Hacks 3 | . . 2 1 Record 1 | . . 1 . Robot Analysis 1 | . . . 1 Emergency Access Points 1 | . . 1 . Fabricator Hacks . | . . . . Repair Station Hacks . | . . . . Recycling Unit Hacks . | . . . . Scanalyzer . | . . . . Garrison Access Hacks . | . . . . Unauthorized Hacks . | . . . . Terminals . | . . . . Fabricators . | . . . . Repair Stations . | . . . . Recycling Units . | . . . . Scanalyzers . | . . . . Garrison Access . | . . . . Data Cores Recovered 1 | . . 1 . Used . | . . . . Hacking Detections 1 | . . 1 . Full Trace Events 1 | . . 1 . Feedback Events . | . . . . Feedback Blocked . | . . . . Robot Schematics Acquired . | . . . . Robots Built . | . . . . Authchips . | . . . . Time . | . . . . Total Robot Build Rating . | . . . . Part Schematics Acquired . | . . . . Parts Built . | . . . . Authchips . | . . . . Time . | . . . . Total Part Build Rating . | . . . . Parts Repaired . | . . . . Time . | . . . . Parts Recycled . | . . . . Recycled Matter . | . . . . Retrieved Matter . | . . . . Retrieved Components . | . . . . Parts Scanalyzed . | . . . . Part Schematics Acquired . | . . . . Parts Damaged . | . . . . Bothacking | -11 -10 -9 -9 ------------ Run | Yrd Mat Mat Sto Used RIF Installer . | . . . . Robots Hacked . | . . . . Non-combat . | . . . . Combat . | . . . . Robot Hacks Applied . | . . . . Relay Couplers Released . | . . . . Fabnet Peak Effective % . | . . . . Robots Rewired . | . . . . Allies Hacked . | . . . . Hacks Repelled . | . . . . Allies | -11 -10 -9 -9 -------- Run | Yrd Mat Mat Sto Total Allies . | . . . . Largest Group . | . . . . Highest-Rated Group . | . . . . Highest-Rated Ally . | . . . . Total Orders . | . . . . Ally Attacks . | . . . . Total Damage . | . . . . Kills . | . . . . Allies Corrupted . | . . . . Allies Melted . | . . . . Intel | -11 -10 -9 -9 ------- Run | Yrd Mat Mat Sto Robot Analysis Total 1 | . . . 1 Derelict Logs Recovered . | . . . . Drone Launches . | . . . . Drone Recoveries . | . . . . Exploration | -11 -10 -9 -9 ------------- Run | Yrd Mat Mat Sto Turns Passed 4577 | 73 1886 2132 486 Spaces Moved 1558 | 52 673 688 145 Core 24 | 24 . . . Treads 378 | . 347 31 . Legs 1156 | 28 326 657 145 Wheels . | . . . . Hover . | . . . . Flight . | . . . . Fastest Speed 50 | 50 120 190 260 Average Speed 239 | 109 225 255 270 Slowest Speed 540 | 120 400 540 470 Overloaded Moves . | . . . . Propulsion Burnouts . | . . . . Robots Hopped . | . . . . Cave-ins Triggered . | . . . . Exploration Rate (%) 50 | 5 95 75 26 Regions Visited 3 Branch Regions 1 Pre-discovered Areas . | . . . . Known Exits Taken . | . . . . Unknown Exits Taken 3 | 1 1 1 . Scrap Searched . | . . . . Spaces Dug . | . . . . Terrain Destroyed 52 | . . 5 47 Melee . | . . . . Projectile . | . . . . AOE 52 | . . 5 47 Terrain Rammed . | . . . . Walls Destroyed . | . . . . Machines Disabled . | . . . . Actions | -11 -10 -9 -9 --------- Run | Yrd Mat Mat Sto Total 2120 | 67 944 919 190 Wait 248 | . 162 84 2 Move 1555 | 51 672 687 145 Hop . | . . . . Pick Up 62 | 9 30 21 2 Fast Attach 8 | 1 2 5 . Attach 26 | 5 2 12 7 Detach . | . . . . Swap 18 | 1 10 6 1 Drop 28 | . 15 12 1 Fire 175 | . 51 92 32 Melee . | . . . . Ram . | . . . . Kick . | . . . . Crush . | . . . . Escape Stasis . | . . . . Rewire . | . . . . Trap . | . . . . Miscellaneous . | . . . . Route ------- -11/Scrapyard -10/Materials (discovered 4 exits: *Mat x3 / [*Min]) -9/Materials (discovered 5 exits: [*Mat x2] / [*Min] / *Sto x2) -9/Storage History --------- Turn | Location | Event 10 | -11/Scrapyard | Discovered new exit (range 15) 74 | -11/Scrapyard | Entered Materials 228 | -10/Materials | Discovered new exit (range 10) 301 | -10/Materials | Build established: Mutant 404 | -10/Materials | Discovered new exit (range 14) 613 | -10/Materials | Discovered new exit (range 4) 1633 | -10/Materials | Discovered new exit (range 13) 1960 | -10/Materials | Entered another Materials area 1960 | -9/Materials | Evolved 2 slots: Propulsion x1, Utility x1 2168 | -9/Materials | Discovered new exit (range 14) 2860 | -9/Materials | Discovered new exit (range 12) 3007 | -9/Materials | Discovered new exit (range 16) 3276 | -9/Materials | Discovered new exit (range 16) 3456 | -9/Materials | Lost 3 parts (1n1u1w) 3605 | -9/Materials | Core integrity fell below 50% 3714 | -9/Materials | Discovered new exit (range 4) 4092 | -9/Materials | Entered Storage 4377 | -9/Storage | Lost 3 parts (1n1u1w) 4417 | -9/Storage | Core integrity fell below 20% 4570 | -9/Storage | Lost 3 parts (1p2n) 4578 | -9/Storage | Destroyed by G-34 Mercenary with Small Laser Last Messages --------------- 04554_ R-06 Scavenger collects Signal Interpreter. 04555_ U-05 Engineer builds a Wall. 04557_ K-01 Serf collects debris. 04557_ U-05 Engineer lays Concrete. 04559_ The unstable cave ceiling collapses. 04559_ U-05 Engineer lays Concrete. 04559_ R-06 Scavenger collects Visual Processing Unit. 04560_ U-05 Engineer lays Concrete. 04560_ K-01 Serf collects debris. 04561_ U-05 Engineer lays Concrete. 04565_ R-06 Scavenger collects Corrupted Aluminum Leg. 04565_ U-05 Engineer lays Concrete. 04569_ U-05 Engineer builds a Wall. 04570_ U-05 Engineer lays Concrete. 04573_ U-05 Engineer builds a Wall. 04573_ U-05 Engineer lays Concrete. 04575_ K-01 Serf destroyed. 04575_ Hrd. Light Armor Plating destroyed. 04575_ R-06 Scavenger collects Med. Matter Pod. 04577_ Aluminum Leg destroyed. Map ----- +----------------------------------------------------+ | | | ??????????###########????????????????????????????? | | ??????????# #????????????????????????????? | | ??????????# """ """ #????????????????????????????? | | ??????????# """ """ #????????????????????????????? | | ??????????# """ """ #????????????????????????????? | | ??????????# #????????????????????????????? | | ??????????# #????????????????????????????? | | ??????????# #????????????????????????????? | | ??????????# #######??????????????????????? | | ??????????######+#### #??????????????????????? | | ??????????# #??????????????????????? | | ??????????# #??????????????????????? | | ??????????# #??????????????????????? | | ??????????######+#### #??????????????????????? | | ???????????# ## ##??????????????????????? | | ???????????# """" ## #############???????????? | | ???????????# "??" ## # #???????????? | | ???????????# "??" ## # / #???????????? | | ???????????# "??" ## # #???????????? | | ???????????# "??" ## + /#???????????? | | ???????????# """" ## # ! #???????????? | | ???????????# ## # % #???????????? | | ???????????#%% ## # #???????????? | | ??????##???#+######### #############???????????? | | ?????## ## ######## @######""###### ?? | | ?????#T + r ?? | | ?????##" ## %%=% % ?? | | ??????????# %% ?? | | ??????????###+#+##### ### ## #### # ??? | | ???????????# % ### gg## # ##? #?????? ??? | | ???????????# % ### k%######?? #????????????? | | ???????????# """ ## #??????? ???????????? | | ???????????# """ ### a #??????? ??????????? | | ???????????# """ #?# #??????? ?????????? | | ???????????# ### #????????#### T???????? | | ???????????# """ "## #???????????? "???????? | | ???????????# """ T## #????????????? #???????? | | ???????????# """ "## ????????????? ????????? | | ???????????# ### #???????????????????????? | | ???????????# #?# #???????????????????????? | | ???????????#########?# #???????????????????????? | | ?????????????????????? #???????????????????????? | | ?????????????????????? ????????????????????????? | | ?????????????????????????????????????????????????? | | ?????????????????????????????????????????????????? | | ?????????????????????????????????????????????????? | | ?????????????????????????????????????????????????? | | ?????????????????????????????????????????????????? | | ?????????????????????????????????????????????????? | +----------------------------------------------------+ Best States ------------- Heat Dissipation 28 Energy Generation 10 Energy Capacity 250 Matter Stores 300 Matter Capacity 300 Sight Range 16 Robot Scan Range 14 Terrain Scan Density 10 Additional Mass Support 6 Armor Coverage 300 Evasion (%) 55 Recoil Reduction 6 Defensive Hacking 20 Item Schematics ----------------- None Robot Schematics ------------------ None Fabricated ------------ Nothing Alien Tech Used ----------------- None Achievements -------------- None Challenges ------------ None Game ------ Seed HackingScanDrive Manual? 0 Play Time 00:45:55 Cumulative 18.7 hours Start 2024.10.27 @ 14:54:19 End 2024.10.27 @ 15:53:55 Sessions 1 Manual Loads 0 Difficulty Rogue Special Mode None Game No. 25 Rogue 25 Adventurer 0 Explorer 0 Win Type - Total 0 Types 0/0/0/0/0/0/0/0/0 Lore% 10 Gallery% 13 Achievement% 11 Wizard Run 0 Options --------- Layout 0 ASCII 0 Keyboard 0 Movement Mouse Keybinds 0 Fullscreen 2 Font 18/SmallcapsGlow Map View 38x25 Zoom Use 94% Tactical HUD 1 Map Filters NONE Filters NONE Steam 1 RUN: 00b74cdf-040e-4951-a0ef-7ab98447b16a